bitfinex/quotes_BTCUSD_20240810
["timestamp","ask_amount","ask_price","bid_price","bid_amount"]
[1723290086368,0.0977947,61078.0,61077.0,0.03558561]
[1723290086781,0.2615197,61078.0,61077.0,0.03558561]
[1723290087133,0.0977947,61078.0,61077.0,0.03558561]
[1723290087619,0.2615197,61078.0,61077.0,0.03558561]
[1723290087800,0.3229197,61078.0,61077.0,0.02198561]
[1723290088002,0.3229197,61078.0,61077.0,0.01]
[1723290089563,0.3229197,61078.0,61076.0,0.0236]
[1723290089564,0.081863,61077.0,61076.0,0.0236]
[1723290089903,0.081863,61077.0,61076.0,0.03558963]
[1723290090963,0.081863,61077.0,61076.0,0.01558963]
[1723290090964,0.083863,61077.0,61076.0,0.01558963]
[1723290091388,0.086863,61077.0,61076.0,0.03558963]
[1723290092849,0.086863,61077.0,61076.0,0.01558963]
[1723290093554,0.25059,61077.0,61076.0,0.03558963]
[1723290095471,0.086863,61077.0,61076.0,0.03558963]
[1723290097884,0.087695,61077.0,61076.0,0.03558963]
[1723290098287,0.005832,61077.0,61076.0,0.16508963]
[1723290102135,0.087695,61077.0,61076.0,0.16508963]
[1723290102303,0.005832,61077.0,61076.0,0.16508963]
[1723290103782,0.005832,61077.0,61076.0,0.11878963]
[1723290105376,0.13671751,61077.0,61076.0,0.03558963]
[1723290106401,0.19811751,61077.0,61076.0,0.01558963]
[1723290106576,0.19811751,61077.0,61076.0,0.0236]
[1723290107600,0.19811751,61077.0,61076.0,0.03558963]
[1723290108222,0.19820248,61077.0,61076.0,0.03558963]
[1723290108419,0.149095,61077.0,61076.0,0.03558963]
[1723290108741,0.22262877,61077.0,61076.0,0.03558963]
[1723290109569,0.22278959,61077.0,61076.0,0.03558963]
[1723290111678,0.38651659,61077.0,61076.0,0.03558963]
[1723290111902,0.245599,61075.0,61074.0,0.01]
[1723290112176,0.245599,61075.0,61070.0,0.0109152]
[1723290112177,0.081871,61071.0,61070.0,0.0109152]
[1723290112377,0.15557511,61071.0,61070.0,0.0109152]
[1723290112757,0.15557622,61071.0,61070.0,0.0109152]
[1723290112958,0.18014653,61071.0,61070.0,0.0109152]
[1723290113278,0.245614,61071.0,61070.0,0.0109152]
[1723290113478,0.56873253,61071.0,61070.0,0.0109152]
[1723290113684,0.470457,61071.0,61070.0,0.0109152]
[1723290113843,0.306714,61071.0,61070.0,0.0109152]
[1723290114045,0.306714,61071.0,61070.0,0.0119152]
[1723290114046,0.315714,61071.0,61070.0,0.0119152]
[1723290114303,0.306714,61071.0,61070.0,0.0109152]
[1723290114618,0.43953085,61071.0,61070.0,0.0119152]
[1723290114748,0.44753085,61071.0,61070.0,0.0129152]
[1723290114943,0.314714,61071.0,61070.0,0.0119152]
[1723290115328,0.40496122,61071.0,61070.0,0.0109152]
[1723290115644,0.35186122,61071.0,61070.0,0.0119152]
[1723290116249,0.36186122,61071.0,61070.0,0.02492871]
[1723290116500,0.36186122,61071.0,61070.0,0.0129152]
[1723290117028,0.36186122,61071.0,61070.0,0.02492871]
[1723290117167,0.263614,61071.0,61070.0,0.01492871]
[1723290118274,0.33728048,61071.0,61070.0,0.01492871]
[1723290119544,0.33728048,61071.0,61070.0,0.0029152]
[1723290119844,0.33728048,61071.0,61070.0,0.01493112]
[1723290121048,0.33728048,61071.0,61070.0,0.02493112]
[1723290122296,0.33727137,61071.0,61070.0,0.02493112]
[1723290122510,0.33727137,61071.0,61070.0,0.01493112]
[1723290122714,0.33727137,61071.0,61070.0,0.02493112]
[1723290122945,0.099871,61071.0,61070.0,0.02493112]
[1723290123187,0.14897351,61071.0,61070.0,0.15593112]
[1723290123365,0.31271651,61071.0,61070.0,0.16593112]
[1723290123571,0.14897351,61071.0,61070.0,0.24643112]
[1723290123765,0.14897351,61071.0,61070.0,0.2344152]
[1723290124005,0.14897351,61071.0,61070.0,0.24643303]
[1723290124306,0.14897351,61071.0,61070.0,0.10543303]
[1723290124307,0.263614,61071.0,61070.0,0.10543303]
[1723290124608,0.33727137,61071.0,61070.0,0.10543303]
[1723290125272,0.263614,61071.0,61070.0,0.10543303]
[1723290125448,0.33727137,61071.0,61070.0,0.10543303]
[1723290125589,0.33727137,61071.0,61070.0,0.02493303]
[1723290127045,0.33726055,61071.0,61070.0,0.02493303]
[1723290129593,0.1980664,61071.0,61070.0,0.02493303]
[1723290130908,0.11619335,61071.0,61070.0,0.02493303]
[1723290131249,0.018,61071.0,61070.0,0.01493303]
[1723290131504,0.018,61071.0,61070.0,0.02493303]
[1723290132679,0.09163777,61071.0,61070.0,0.02493303]
[1723290133236,0.099871,61071.0,61070.0,0.02493303]
[1723290133445,0.092703,61071.0,61070.0,0.02393303]
[1723290133651,0.082703,61071.0,61070.0,0.02293303]
[1723290133764,0.090703,61071.0,61070.0,0.02393303]
[1723290133965,0.264446,61071.0,61070.0,0.02493303]
[1723290134181,0.35462745,61071.0,61070.0,0.02393303]
[1723290134423,0.19088396,61071.0,61070.0,0.02393303]
[1723290134625,0.67074188,61071.0,61070.0,0.01493303]
[1723290134822,0.92320392,61071.0,61070.0,0.0029152]
[1723290135000,0.83470392,61071.0,61070.0,0.0019152]
[1723290135202,0.99844692,61071.0,61070.0,0.0019152]
[1723290135411,1.00644692,61071.0,61070.0,0.0029152]
[1723290136035,1.00644692,61071.0,61058.0,0.0814152]
[1723290136036,0.723916,61059.0,61058.0,0.0009152]
[1723290136236,0.88773092,61059.0,61058.0,0.0009152]
[1723290136434,0.98773092,61059.0,61058.0,0.0009152]
[1723290136853,0.57254,61059.0,61058.0,0.0109152]
[1723290137029,0.50944,61059.0,61058.0,0.0109152]
[1723290137228,0.51844,61059.0,61058.0,0.0109152]
[1723290137497,0.50944,61059.0,61058.0,0.0109152]
[1723290137675,0.51644,61059.0,61058.0,0.0109152]
[1723290137917,0.52744,61059.0,61058.0,0.0109152]
[1723290138127,0.50944,61059.0,61058.0,0.0109152]
[1723290138331,0.63199761,61059.0,61058.0,0.0009152]
[1723290138527,0.64099761,61059.0,61058.0,0.0009152]
[1723290138830,0.65088014,61059.0,61058.0,0.0009152]
[1723290139185,0.52832253,61059.0,61058.0,0.0009152]
[1723290139410,0.53932253,61059.0,61058.0,0.0009152]
[1723290139795,0.70309853,61059.0,61058.0,0.0009152]
[1723290140444,0.96490595,61059.0,61058.0,0.0009152]
[1723290141252,0.96488298,61059.0,61058.0,0.0009152]
[1723290141777,0.97128298,61059.0,61058.0,0.0009152]
[1723290141940,0.87331345,61059.0,61058.0,0.0009152]
[1723290142139,1.07707106,61059.0,61058.0,0.0009152]
[1723290142345,1.05246086,61059.0,61058.0,0.0009152]
[1723290142549,1.25574891,61059.0,61058.0,0.0009152]
[1723290142756,1.1578015,61059.0,61058.0,0.0009152]
[1723290142971,1.3215775,61059.0,61058.0,0.0009152]
[1723290143172,1.37834503,61059.0,61058.0,0.0009152]
[1723290143392,1.3215775,61059.0,61058.0,0.0009152]
[1723290143738,1.37834511,61059.0,61058.0,0.0009152]
[1723290143945,1.3215775,61059.0,61058.0,0.0009152]
[1723290144165,1.37819025,61059.0,61058.0,0.0009152]
[1723290144374,2.22496625,61059.0,61058.0,0.0009152]
[1723290144588,2.45742656,61059.0,61058.0,0.0009152]
[1723290144736,0.0064,61051.0,61050.0,0.001]
[1723290144940,1.10822598,61051.0,61050.0,0.001]
[1723290145140,1.33373544,61051.0,61050.0,0.01227824]
[1723290145301,1.27711038,61051.0,61050.0,0.001]
[1723290146510,1.3993956,61051.0,61050.0,0.001]
[1723290146717,1.4133956,61051.0,61050.0,0.001]
[1723290146914,1.3993956,61051.0,61050.0,0.001]
[1723290147185,1.27711038,61051.0,61050.0,0.001]
[1723290147363,1.41335366,61051.0,61050.0,0.001]
[1723290147533,1.39935366,61051.0,61050.0,0.001]
[1723290147740,1.41335366,61051.0,61050.0,0.001]
[1723290148153,1.27711038,61051.0,61050.0,0.001]
[1723290148337,1.37487656,61051.0,61050.0,0.001]
[1723290148562,1.38887656,61051.0,61050.0,0.001]
[1723290149079,1.41335366,61051.0,61050.0,0.001]
[1723290149296,1.29111038,61051.0,61050.0,0.001]
[1723290149494,1.30511038,61051.0,61050.0,0.001]
[1723290150265,1.40283008,61051.0,61050.0,0.001]
[1723290150880,1.41266838,61051.0,61050.0,0.001]
[1723290151354,1.98266838,61051.0,61050.0,0.001]
[1723290151566,1.87494868,61051.0,61050.0,0.001]
[1723290151768,1.99712792,61051.0,61050.0,0.001]
[1723290152128,1.99712792,61051.0,61046.0,0.0009141]
[1723290152129,0.579728,61047.0,61046.0,0.0009141]
[1723290152329,2.09355768,61047.0,61046.0,0.0009141]
[1723290152529,2.31423498,61047.0,61046.0,0.0009141]
[1723290152803,2.02832022,61047.0,61046.0,0.0009141]
[1723290153228,2.02832022,61047.0,61030.0,0.0009141]
[1723290153229,0.154225,61031.0,61030.0,0.0009141]
[1723290153404,0.64574192,61031.0,61030.0,0.0009141]
[1723290153607,1.07344392,61031.0,61030.0,0.01227283]
[1723290153807,1.07344392,61031.0,61030.0,0.0009141]
[1723290154414,1.08544392,61031.0,61030.0,0.0009141]
[1723290154612,1.22348151,61031.0,61030.0,0.0009141]
[1723290154816,1.23366104,61031.0,61030.0,0.0009141]
[1723290154992,1.22166104,61031.0,61030.0,0.0009141]
[1723290155989,1.23566104,61031.0,61030.0,0.0009141]
[1723290156635,1.24966104,61031.0,61030.0,0.0009141]
[1723290156870,1.23566104,61031.0,61030.0,0.0009141]
[1723290157281,1.24966104,61031.0,61030.0,0.0009141]
[1723290157793,1.98966104,61031.0,61030.0,0.0009141]
[1723290158029,1.24966104,61031.0,61030.0,0.0009141]
[1723290158213,1.23566104,61031.0,61030.0,0.0009141]
[1723290158512,0.86147245,61031.0,61030.0,0.0009141]
[1723290158856,0.84747245,61031.0,61030.0,0.0009141]
[1723290159274,0.86147245,61031.0,61030.0,0.0009141]
[1723290159925,0.87547245,61031.0,61030.0,0.0009141]
[1723290160056,0.84747245,61031.0,61030.0,0.0009141]
[1723290160260,0.86787245,61031.0,61030.0,0.0009141]
[1723290160454,0.88187245,61031.0,61030.0,0.0009141]
[1723290160713,0.86787245,61031.0,61030.0,0.0009141]
[1723290160914,0.85387245,61031.0,61030.0,0.0009141]
[1723290161118,0.86787245,61031.0,61030.0,0.0009141]
[1723290161725,0.86147245,61031.0,61030.0,0.0009141]
[1723290162180,0.88187245,61031.0,61030.0,0.0009141]
[1723290163157,0.87547245,61031.0,61030.0,0.0009141]
[1723290168838,0.028,61031.0,61030.0,0.1680141]
[1723290169029,0.028,61031.0,61030.0,0.2499401]
[1723290169187,0.028,61031.0,61030.0,0.4137931]
[1723290169403,0.028,61031.0,61030.0,0.425173]
[1723290169603,0.028,61031.0,61030.0,0.589026]
[1723290169767,0.163822,61042.0,61041.0,0.01]
[1723290169964,0.40954692,61042.0,61041.0,0.1535]
[1723290170191,0.245732,61042.0,61041.0,0.1535]
[1723290170475,0.245732,61042.0,61041.0,0.1648345]
[1723290171687,0.257732,61042.0,61041.0,0.1648345]
[1723290171896,0.357732,61042.0,61041.0,0.1648345]
[1723290172539,0.534554,61042.0,61041.0,0.1548345]
[1723290173145,0.522554,61042.0,61041.0,0.1548345]
[1723290173347,0.509554,61042.0,61041.0,0.1548345]
[1723290173524,0.521554,61042.0,61041.0,0.1548345]
[1723290173726,0.68536892,61042.0,61041.0,0.0935345]
[1723290173925,0.40958,61038.0,61037.0,0.1435]
[1723290174129,0.40958,61038.0,61037.0,0.0822]
[1723290174130,0.57339492,61038.0,61037.0,0.0822]
[1723290175120,0.081925,61031.0,61030.0,0.0109141]
[1723290175349,0.245776,61031.0,61030.0,0.0109141]
[1723290175875,0.245776,61031.0,61030.0,0.0931141]
[1723290176490,0.245776,61031.0,61030.0,0.10549069]
[1723290176787,0.409627,61031.0,61030.0,0.10549069]
[1723290177020,0.57344192,61031.0,61030.0,0.10549069]
[1723290177341,0.57344192,61031.0,61030.0,0.0941141]
[1723290177535,0.57344192,61031.0,61030.0,0.0951141]
[1723290177980,0.57344192,61031.0,61030.0,0.0931141]
[1723290178403,0.58344192,61031.0,61030.0,0.0109141]
[1723290180597,1.25831231,61031.0,61030.0,0.0009141]
[1723290180832,1.31480637,61031.0,61030.0,0.0009141]
[1723290181034,1.31480637,61031.0,61020.0,0.0009141]
[1723290181035,0.579973,61021.0,61020.0,0.0009141]
[1723290181252,0.89273077,61021.0,61020.0,0.0009141]
[1723290181454,0.95833077,61021.0,61020.0,0.0009141]
[1723290181668,0.95834406,61021.0,61020.0,0.0009141]
[1723290181831,1.03932683,61021.0,61020.0,0.0009141]
[1723290182044,0.90938792,61021.0,61020.0,0.0009141]
[1723290182248,0.96591465,61021.0,61020.0,0.0009141]
[1723290182444,0.98891465,61021.0,61020.0,0.0009141]
[1723290182645,1.10082141,61021.0,61020.0,0.0009141]
[1723290182847,1.08682141,61021.0,61020.0,0.0009141]
[1723290183049,1.23180597,61021.0,61020.0,0.0009141]
[1723290183283,1.13389921,61021.0,61020.0,0.0009141]
[1723290183599,1.14789921,61021.0,61020.0,0.0009141]
[1723290183776,1.16189921,61021.0,61020.0,0.0009141]
[1723290183985,1.14789921,61021.0,61020.0,0.0009141]
[1723290184335,1.28424213,61021.0,61020.0,0.0009141]
[1723290184533,1.16188499,61021.0,61020.0,0.0009141]
[1723290184684,1.32576299,61021.0,61020.0,0.0009141]
[1723290184897,1.29776299,61021.0,61020.0,0.0009141]
[1723290185228,1.43412013,61021.0,61020.0,0.0009141]
[1723290185511,1.42012013,61021.0,61020.0,0.0009141]
[1723290185838,1.25525048,61021.0,61020.0,0.0009141]
[1723290186028,1.31168495,61021.0,61020.0,0.0009141]
[1723290186205,1.36360762,61021.0,61020.0,0.0009141]
[1723290186408,1.37760762,61021.0,61020.0,0.0009141]
[1723290186609,1.39160762,61021.0,61020.0,0.0009141]
[1723290186809,0.98014506,61021.0,61020.0,0.0009141]
[1723290187032,0.84378792,61021.0,61020.0,0.0009141]
[1723290187248,0.85778792,61021.0,61020.0,0.0009141]
[1723290187457,0.9312395,61021.0,61020.0,0.0009141]
[1723290187880,0.9172395,61021.0,61020.0,0.0009141]
[1723290188183,0.94137188,61021.0,61020.0,0.0009141]
[1723290188388,0.8679203,61021.0,61020.0,0.0009141]
[1723290189340,0.97983349,61021.0,61020.0,0.0009141]
[1723290189643,0.7609844,61021.0,61020.0,0.0787141]
[1723290190015,0.70150992,61021.0,61020.0,0.0787141]
[1723290190177,0.73649064,61021.0,61020.0,0.0787141]
[1723290190775,0.73649064,61021.0,61020.0,0.0887141]
[1723290190984,0.75049064,61021.0,61020.0,0.0787141]
[1723290191182,0.73649064,61021.0,61020.0,0.0787141]
[1723290191545,0.75049064,61021.0,61020.0,0.0787141]
[1723290191960,0.91436864,61021.0,61020.0,0.0787141]
[1723290192166,0.93887915,61021.0,61020.0,0.0787141]
[1723290192368,0.9143825,61021.0,61020.0,0.0787141]
[1723290192704,0.86538792,61021.0,61020.0,0.0787141]
[1723290193110,0.85138792,61021.0,61020.0,0.0787141]
[1723290193255,0.86538792,61021.0,61020.0,0.0787141]
[1723290193478,0.85138792,61021.0,61020.0,0.0787141]
[1723290193687,0.83738792,61021.0,61020.0,0.0787141]
[1723290193903,0.86538792,61021.0,61020.0,0.0787141]
[1723290194300,0.85138792,61021.0,61020.0,0.0787141]
[1723290195245,0.91087915,61021.0,61020.0,0.0787141]
[1723290196810,0.92487915,61021.0,61020.0,0.0787141]
[1723290197014,0.91087915,61021.0,61020.0,0.0787141]
[1723290197412,0.92487915,61021.0,61020.0,0.0787141]
[1723290197676,0.96334971,61021.0,61020.0,0.0787141]
[1723290197873,0.86538792,61021.0,61020.0,0.0787141]
[1723290198166,0.94942767,61021.0,61020.0,0.0787141]
[1723290198661,0.96342767,61021.0,61020.0,0.0787141]
[1723290199896,0.96342767,61021.0,61020.0,0.0887141]
[1723290201674,0.70150992,61021.0,61020.0,0.0887141]
[1723290201893,0.77503997,61021.0,61020.0,0.0887141]
[1723290202048,0.76103997,61021.0,61020.0,0.0887141]
[1723290202594,0.73652931,61021.0,61020.0,0.0887141]
[1723290202959,0.68750992,61021.0,61020.0,0.0887141]
[1723290203159,0.67350992,61021.0,61020.0,0.0887141]
[1723290203359,0.73652389,61021.0,61020.0,0.0887141]
[1723290203571,0.75052389,61021.0,61020.0,0.0887141]
[1723290203781,0.68750992,61021.0,61020.0,0.0887141]
[1723290204325,0.70050992,61021.0,61020.0,0.0887141]
[1723290204684,0.79854672,61021.0,61020.0,0.0887141]
[1723290204891,0.774038,61021.0,61020.0,0.0887141]
[1723290205293,0.774038,61021.0,61020.0,0.0787141]
[1723290205708,0.70050992,61021.0,61020.0,0.0787141]
[1723290206376,0.7740358,61021.0,61020.0,0.0787141]
[1723290206881,0.70050992,61021.0,61020.0,0.0787141]
[1723290207808,0.7740315,61021.0,61020.0,0.0787141]
[1723290208779,0.9379095,61021.0,61020.0,0.0787141]
[1723290209960,0.96761082,61021.0,61020.0,0.0787141]
[1723290210177,0.99461082,61021.0,61020.0,0.0787141]
[1723290210383,0.9379095,61021.0,61020.0,0.0787141]
[1723290210585,0.92108577,61021.0,61020.0,0.0787141]
[1723290210943,0.89408577,61021.0,61020.0,0.0787141]
[1723290211169,1.00491177,61021.0,61020.0,0.0009141]
[1723290211460,1.59848577,61021.0,61020.0,0.0009141]
[1723290211658,1.57048577,61021.0,61020.0,0.0009141]
[1723290211883,1.58448577,61021.0,61020.0,0.0009141]
[1723290213128,1.59748577,61021.0,61020.0,0.0009141]
[1723290213266,1.58348577,61021.0,61020.0,0.0009141]
[1723290213465,1.58448577,61021.0,61020.0,0.0009141]
[1723290213900,1.59848577,61021.0,61020.0,0.0009141]
[1723290214104,1.59843452,61021.0,61020.0,0.0009141]
[1723290215477,0.92843452,61021.0,61020.0,0.0009141]
[1723290217773,0.87178792,61021.0,61020.0,0.0009141]
[1723290218073,0.92861233,61021.0,61020.0,0.0009141]
[1723290221512,0.92221233,61021.0,61020.0,0.0009141]
[1723290221881,0.92861233,61021.0,61020.0,0.0009141]
[1723290222186,0.92221233,61021.0,61020.0,0.0009141]
[1723290222426,0.92221233,61021.0,61020.0,0.1540141]
[1723290222427,0.86538792,61021.0,61020.0,0.1540141]
[1723290222556,0.92163452,61021.0,61020.0,0.1540141]
[1723290223180,0.92163452,61021.0,61020.0,0.16544006]
[1723290223396,0.75775652,61021.0,61020.0,0.16544006]
[1723290224159,0.92163452,61021.0,61020.0,0.16544006]
[1723290224482,0.75775652,61021.0,61020.0,0.1540141]
[1723290224810,0.86538792,61021.0,61020.0,0.1540141]
[1723290225027,0.70150992,61021.0,61020.0,0.1540141]
[1723290225234,0.70150992,61021.0,61020.0,0.16544006]
[1723290225617,0.70150992,61021.0,61020.0,0.1540141]
[1723290225820,0.70150992,61021.0,61020.0,0.16544006]
[1723290225991,0.70150992,61021.0,61020.0,0.1540141]
[1723290227685,0.76708676,61021.0,61020.0,0.1540141]
[1723290227908,0.67548737,61021.0,61020.0,0.1540141]
[1723290228128,0.76708755,61021.0,61020.0,0.1540141]
[1723290228294,0.61957092,61021.0,61020.0,0.1540141]
[1723290228654,0.86538792,61021.0,61020.0,0.1540141]
[1723290228879,0.70150992,61021.0,61020.0,0.1540141]
[1723290229312,0.84902655,61021.0,61020.0,0.1540141]
[1723290229572,0.70150992,61021.0,61020.0,0.1540141]
[1723290229771,0.86538792,61021.0,61020.0,0.1540141]
[1723290229978,0.75751121,61021.0,61020.0,0.1440141]
[1723290230206,0.92139308,61021.0,61020.0,0.0814141]
[1723290230371,0.75751508,61021.0,61020.0,0.0814141]
[1723290230576,0.92139308,61021.0,61020.0,0.0814141]
[1723290230792,0.89339308,61021.0,61020.0,0.0814141]
[1723290231012,0.90739308,61021.0,61020.0,0.0814141]
[1723290231380,0.85138792,61021.0,61020.0,0.0814141]
[1723290231580,0.57964139,61021.0,61020.0,0.0814141]
[1723290231780,0.59364139,61021.0,61020.0,0.0914141]
[1723290231982,0.57964139,61021.0,61020.0,0.0814141]
[1723290232770,0.56564139,61021.0,61020.0,0.0814141]
[1723290233192,0.57964139,61021.0,61020.0,0.0814141]
[1723290233398,0.523695,61021.0,61020.0,0.0814141]
[1723290233608,0.56660833,61021.0,61020.0,0.0814141]
[1723290233816,0.58060833,61021.0,61020.0,0.0814141]
[1723290233991,0.59460833,61021.0,61020.0,0.0814141]
[1723290234197,0.58060833,61021.0,61020.0,0.0814141]
[1723290234545,0.59460833,61021.0,61020.0,0.0814141]
[1723290234685,0.58060833,61021.0,61020.0,0.0814141]
[1723290235055,0.59460833,61021.0,61020.0,0.0814141]
[1723290236095,0.58060833,61021.0,61020.0,0.0814141]
[1723290236343,0.59460833,61021.0,61020.0,0.0814141]
[1723290236732,0.58060833,61021.0,61020.0,0.0814141]
[1723290237078,0.59460833,61021.0,61020.0,0.0814141]
[1723290237283,0.59462496,61021.0,61020.0,0.0814141]
[1723290240343,0.58062496,61021.0,61020.0,0.0814141]
[1723290240806,0.57944641,61021.0,61020.0,0.0814141]
[1723290241102,0.75732441,61021.0,61020.0,0.0814141]
[1723290241304,0.537527,61021.0,61020.0,0.0814141]
[1723290241505,0.75732441,61021.0,61020.0,0.0814141]
[1723290241665,0.59344641,61021.0,61020.0,0.0814141]
[1723290242847,0.75732441,61021.0,61020.0,0.0814141]
[1723290243051,0.59344641,61021.0,61020.0,0.1524141]
[1723290243259,0.59344641,61021.0,61020.0,0.16384006]
[1723290244728,0.537527,61021.0,61020.0,0.16384006]
[1723290244929,0.537527,61021.0,61020.0,0.0814141]
[1723290245155,0.59332306,61021.0,61020.0,0.0814141]
[1723290245697,0.92101598,61021.0,61020.0,0.0009141]
[1723290247164,0.92121607,61021.0,61020.0,0.0009141]
[1723290247741,0.92761607,61021.0,61020.0,0.0009141]
[1723290248660,1.00301607,61021.0,61020.0,0.0009141]
[1723290248864,1.87699407,61021.0,61020.0,0.0009141]
[1723290250596,1.82099792,61021.0,61020.0,0.0009141]
[1723290250806,1.87720514,61021.0,61020.0,0.0009141]
[1723290251013,1.82099792,61021.0,61020.0,0.0009141]
[1723290251152,1.87720514,61021.0,61020.0,0.0009141]
[1723290251986,2.06435484,61021.0,61020.0,0.0009141]
[1723290252344,2.86480149,61021.0,61020.0,0.0009141]
[1723290252672,2.94273843,61021.0,61020.0,0.0009141]
[1723290253420,2.23557788,61021.0,61020.0,0.0009141]
[1723290254291,2.23567518,61021.0,61020.0,0.0009141]
[1723290254461,1.99358854,61021.0,61020.0,0.0009141]
[1723290254902,2.23567518,61021.0,61020.0,0.0009141]
[1723290255322,0.573657,61012.0,61011.0,0.0001]
[1723290255489,1.05954645,61012.0,61011.0,0.0001]
[1723290255702,1.05954645,61012.0,61011.0,0.01156344]
[1723290255855,0.9601845,61012.0,61011.0,0.0001]
[1723290256794,0.9681845,61012.0,61011.0,0.0001]
[1723290256955,1.81726773,61012.0,61011.0,0.0001]
[1723290257360,1.8064865,61012.0,61011.0,0.0001]
[1723290257568,0.824695,61009.0,61008.0,0.009141]
[1723290257780,1.9447225,61009.0,61008.0,0.009141]
[1723290259095,1.9527225,61009.0,61008.0,0.009141]
[1723290259698,1.9627225,61009.0,61008.0,0.009141]
[1723290259900,2.1268722,61009.0,61008.0,0.009141]
[1723290260219,1.8820225,61009.0,61008.0,0.009141]
[1723290260423,1.8756225,61009.0,61008.0,0.009141]
[1723290260628,1.7181125,61009.0,61008.0,0.087041]
[1723290261021,1.7001125,61009.0,61008.0,0.087041]
[1723290261228,1.64389992,61009.0,61008.0,0.087041]
[1723290261399,1.72602835,61009.0,61008.0,0.087041]
[1723290261600,1.87326349,61009.0,61008.0,0.087041]
[1723290261852,1.87319967,61009.0,61008.0,0.087041]
[1723290263520,1.87317103,61009.0,61008.0,0.087041]
[1723290264121,1.72596453,61009.0,61008.0,0.087041]
[1723290265835,1.87314648,61009.0,61008.0,0.087041]
[1723290266048,1.72596453,61009.0,61008.0,0.087041]
[1723290266863,1.89011423,61009.0,61008.0,0.009141]
[1723290267063,2.10631423,61009.0,61008.0,0.009141]
[1723290268665,2.04631423,61009.0,61008.0,0.009141]
[1723290270977,2.21022423,61009.0,61008.0,0.009141]
[1723290271319,2.04631423,61009.0,61008.0,0.009141]
[1723290272560,2.21022423,61009.0,61008.0,0.009141]
[1723290272911,2.15415962,61009.0,61008.0,0.009141]
[1723290273102,2.2101674,61009.0,61008.0,0.009141]
[1723290273302,2.0462574,61009.0,61008.0,0.009141]
[1723290273837,2.2101674,61009.0,61008.0,0.009141]
[1723290277902,2.0462574,61009.0,61008.0,0.009141]
[1723290280354,1.7466077,61009.0,61008.0,0.009141]
[1723290280555,1.6659077,61009.0,61008.0,0.009141]
[1723290282625,1.81287013,61009.0,61008.0,0.009141]
[1723290283151,1.75706903,61009.0,61008.0,0.009141]
[1723290283372,1.81287036,61009.0,61008.0,0.009141]
[1723290283588,1.66570125,61009.0,61008.0,0.009141]
[1723290284122,1.80466625,61009.0,61008.0,0.009141]
[1723290284586,1.95183536,61009.0,61008.0,0.009141]
[1723290286619,1.95197381,61009.0,61008.0,0.009141]
[1723290286853,1.80660881,61009.0,61008.0,0.085641]
[1723290287411,1.60660881,61009.0,61008.0,0.085641]
[1723290289297,1.4658397,61009.0,61008.0,0.085641]
[1723290290066,1.61314444,61009.0,61008.0,0.085641]
[1723290290398,1.4658397,61009.0,61008.0,0.085641]
[1723290290759,1.4594397,61009.0,61008.0,0.085641]
[1723290291477,1.5094397,61009.0,61008.0,0.085641]
[1723290294159,1.56896428,61009.0,61008.0,0.085641]
[1723290295562,1.65896428,61009.0,61008.0,0.085641]
[1723290296773,1.73116428,61009.0,61008.0,0.009141]
[1723290297323,1.73116428,61009.0,61008.0,0.00315308]
[1723290297324,2.05302074,61009.0,61008.0,0.00315308]
[1723290297498,2.05302074,61009.0,61002.0,0.0009152]
[1723290297499,0.328389,61003.0,61002.0,0.0009152]
[1723290297698,0.328389,61003.0,60993.0,0.0834152]
[1723290297699,0.660886,60998.0,60993.0,0.0834152]
[1723290297874,0.660886,60998.0,60993.0,0.0009152]
[1723290297875,1.7706407,60998.0,60993.0,0.0009152]
[1723290298079,1.9345797,60998.0,60993.0,0.0009152]
[1723290300094,1.9485797,60998.0,60993.0,0.0009152]
[1723290300647,2.02053992,60998.0,60993.0,0.0009152]
[1723290300835,2.10490216,60998.0,60993.0,0.0009152]
[1723290301233,2.09090216,60998.0,60993.0,0.0009152]
[1723290301819,2.10069578,60998.0,60993.0,0.0009152]
[1723290302098,2.08669578,60998.0,60993.0,0.0009152]
[1723290302383,2.26484548,60998.0,60993.0,0.0009152]
[1723290302945,2.18874548,60998.0,60993.0,0.0009152]
[1723290303173,2.20274548,60998.0,60993.0,0.0009152]
[1723290303396,1.90243354,60998.0,60993.0,0.0009152]
[1723290303612,1.79523356,60998.0,60997.0,0.0834141]
[1723290303815,1.72853356,60998.0,60997.0,0.0834141]
[1723290304016,1.71432766,60998.0,60997.0,0.0834141]
[1723290304223,1.75303731,60998.0,60997.0,0.0834141]
[1723290304781,1.74663731,60998.0,60997.0,0.0834141]
[1723290304982,1.76063731,60998.0,60997.0,0.0834141]
[1723290305181,1.75303731,60998.0,60997.0,0.0834141]
[1723290305381,1.76063731,60998.0,60997.0,0.0834141]
[1723290305607,1.76703731,60998.0,60997.0,0.0834141]
[1723290305809,1.84773731,60998.0,60997.0,0.0834141]
[1723290305989,1.83373731,60998.0,60997.0,0.0834141]
[1723290306185,1.88553731,60998.0,60997.0,0.0009141]
[1723290306386,1.89953731,60998.0,60997.0,0.0009141]
[1723290306784,1.87482766,60998.0,60997.0,0.0009141]
[1723290307643,1.86082766,60998.0,60997.0,0.0009141]
[1723290307997,1.87482766,60998.0,60997.0,0.0009141]
[1723290308202,2.04060514,60998.0,60997.0,0.0009141]
[1723290308995,2.20454414,60998.0,60997.0,0.0009141]
[1723290309417,2.36869384,60998.0,60997.0,0.0009141]
[1723290309619,0.0064,60992.0,60991.0,0.0001]
[1723290309796,1.59865504,60992.0,60991.0,0.0001]
[1723290309999,3.04577604,60992.0,60991.0,0.0001]
[1723290310200,3.30992574,60992.0,60991.0,0.0001]
[1723290310395,3.30992574,60992.0,60975.0,0.0611]
[1723290310396,0.416307,60989.0,60975.0,0.0611]
[1723290310600,0.25237,60983.0,60974.0,0.0824]
[1723290310855,1.72627486,60983.0,60974.0,0.0824]
[1723290311246,1.97059097,60983.0,60974.0,0.0824]
[1723290311425,2.03059097,60983.0,60974.0,0.0824]
[1723290311830,1.96389097,60983.0,60974.0,0.0824]
[1723290312036,1.99079298,60983.0,60974.0,0.0824]
[1723290312435,1.97679298,60983.0,60974.0,0.0824]
[1723290312640,1.99079298,60983.0,60974.0,0.0824]
[1723290312980,1.99079298,60983.0,60982.0,0.152652]
[1723290312981,1.62881355,60983.0,60982.0,0.152652]
[1723290313177,1.77597292,60983.0,60982.0,0.152652]
[1723290313379,1.58574492,60983.0,60982.0,0.152652]
[1723290313581,1.59548688,60983.0,60982.0,0.152652]
[1723290313801,1.58148688,60983.0,60982.0,0.152652]
[1723290314576,1.25369196,60983.0,60982.0,0.152652]
[1723290314800,0.60724489,60983.0,60982.0,0.152652]
[1723290315003,0.76131785,60983.0,60982.0,0.152652]
[1723290315182,0.70176492,60983.0,60982.0,0.152652]
[1723290315585,0.68776492,60983.0,60982.0,0.152652]
[1723290316888,0.70176492,60983.0,60982.0,0.152652]